[Event "XX Gran Hotel Bali-B 2023"]
[Site "Benidorm"]
[Date "2023.12.02"]
[Round "1.1"]
[White "Sanchez Lopez, Jesus"]
[Black "De Luna Butz, Alberto"]
[Result "1-0"]
[ECO "B01"]
[WhiteElo "1993"]
[BlackElo "1617"]
[Annotator "NA RC"]
[PlyCount "167"]
[EventDate "2023.12.02"]
[EventType "swiss"]
[EventCountry "ESP"]
[SourceTitle "playchess.com"]
[Source "ChessBase"]
[SourceQuality "1"]
[TimeControl "5400+30"]

1. e4 {[%emt 0:01:30]} d5 {[%emt 0:00:04]} 2. exd5 {[%emt 0:00:22]} Qxd5 {[%emt 0:00:02]} 3. Nc3 {[%emt 0:00:27]} Qd6 {[%emt 0:00:04]} 4. d4 {[%emt 0:00:59]} Nf6 {[%emt 0:00:04]} 5. Nf3 {[%emt 0:01:05]} c6 {[%emt 0:00:03]} 6. Be3 {[%emt 0:01:31]} Bf5 {[%emt 0:00:28]} 7. Nh4 {[%emt 0:03:27]} Bg6 {[%emt 0:01:19]} 8. Qd2 {[%emt 0:09:47]} e6 {[%emt 0:02:56]} 9. Nxg6 {[%emt 0:20:40]} hxg6 {[%emt 0:00:25]} 10. O-O-O {[%emt 0:05:54]} Qc7 {[%emt 0:06:59]} 11. Kb1 {[%emt 0:11:20]} Nbd7 {[%emt 0:01:16]} 12. h3 {[%emt 0:07:10]} O-O-O {[%emt 0:03:59]} 13. Bf4 {[%emt 0:02:50]} Bd6 {[%emt 0:02:17]} 14. Bxd6 {[%emt 0:01:28]} Qxd6 {[%emt 0:00:05]} 15. Bc4 {[%emt 0:04:08]} Nb6 {[%emt 0:04:41]} 16. Bb3 {[%emt 0:06:36]} Nbd5 {[%emt 0:05:01]} 17. Bxd5 {[%emt 0:03:47]} exd5 {[%emt 0:01:01]} 18. f3 {[%emt 0:02:27]} Rde8 {[%emt 0:02:47]} 19. Rhe1 {[%emt 0:02:49]} Rxe1 {[%emt 0:05:27]} 20. Rxe1 {[%emt 0:00:19]} Re8 {[%emt 0:02:03]} 21. Rxe8+ {[%emt 0:01:15]} Nxe8 {[%emt 0:00:02]} 22. Qe3 {[%emt 0:05:17]} Nc7 {[%emt 0:03:08]} 23. Kc1 {[%emt 0:01:27]} Kd7 {[%emt 0:05:14]} 24. Ne2 {[%emt 0:01:15]} Ne6 {[%emt 0:04:20]} 25. c3 {[%emt 0:02:36]} g5 {[%emt 0:05:19]} 26. g3 {[%emt 0:00:29]} b5 {[%emt 0:03:12]} 27. a3 {[%emt 0:01:24]} a5 {[%emt 0:00:58]} 28. Kc2 {[%emt 0:00:37]} f6 {[%emt 0:06:51]} 29. f4 {[%emt 0:00:58]} gxf4 {[%emt 0:00:59]} 30. gxf4 {[%emt 0:00:10]} g5 {[%emt 0:06:32]} 31. fxg5 {[%emt 0:00:37]} fxg5 {[%emt 0:00:13]} 32. Kb1 {[%emt 0:00:57]} Qe7 {[%emt 0:04:03]} 33. Qe5 {[%emt 0:00:31]} Qh7+ {[%emt 0:00:50]} 34. Ka2 {[%emt 0:00:02]} Qxh3 {[%emt 0:00:33]} 35. Ng3 {[%emt 0:00:50]} Qh2 {[%emt 0:01:35]} 36. Qb8 {[%emt 0:00:40]} a4 {[%emt 0:01:51]} 37. Qa7+ {[%emt 0:00:31]} Nc7 {[%emt 0:00:40]} 38. Nf5 {[%emt 0:00:27]} g4 {[%emt 0:03:01]} 39. Qc5 {[%emt 0:00:30]} Ke6 {[%emt 0:08:01]} 40. Qf8 {[%emt 0:00:19]} Qh7 {[%emt 0:03:34]} 41. Ne3 {[%emt 0:00:56]} Qf7 {[%emt 0:04:17]} 42. Qc8+ {[%emt 0:00:22]} Qd7 {[%emt 0:00:43]} 43. Qg8+ {[%emt 0:00:24]} Kd6 {[%emt 0:01:16]} 44. Qf8+ {[%emt 0:00:35]} Ke6 {[%emt 0:00:29]} 45. Nxg4 {[%emt 0:00:26]} Qf7 {[%emt 0:03:40]} 46. Qxf7+ {[%emt 0:00:40]} Kxf7 {[%emt 0:00:01]} 47. Ne5+ {[%emt 0:00:01]} Ke7 {[%emt 0:00:48]} 48. Nxc6+ {[%emt 0:00:01]} Ke6 {[%emt 0:00:40]} 49. Nb4 {[%emt 0:00:20]} Kd6 {[%emt 0:00:21]} 50. Nd3 {[%emt 0:00:09]} Ne6 {[%emt 0:00:14]} 51. Kb1 {[%emt 0:00:36]} Ng5 {[%emt 0:00:24]} 52. Nc5 {[%emt 0:00:17]} Nf7 {[%emt 0:00:43]} 53. Kc2 {[%emt 0:00:25]} Nd8 {[%emt 0:00:08]} 54. Nd3 {[%emt 0:02:04]} Nc6 {[%emt 0:00:18]} 55. Nf4 {[%emt 0:00:23]} Na5 {[%emt 0:00:17]} 56. Ng2 {[%emt 0:00:43]} Nc4 {[%emt 0:00:14]} 57. Ne1 {[%emt 0:00:29]} Ke6 {[%emt 0:00:55]} 58. Nf3 {[%emt 0:00:23]} Kd6 {[%emt 0:00:25]} 59. Nd2 {[%emt 0:00:39]} Nb6 {[%emt 0:00:15]} 60. Kd3 {[%emt 0:00:31]} Ke6 {[%emt 0:00:25]} 61. Nf3 {[%emt 0:00:29]} Nc4 {[%emt 0:00:12]} 62. Kc2 {[%emt 0:00:06]} Kd6 {[%emt 0:00:14]} 63. Nd2 {[%emt 0:00:35]} Nb6 {[%emt 0:00:18]} 64. b3 {[%emt 0:00:21]} axb3+ {[%emt 0:02:18]} 65. Kxb3 {[%emt 0:00:08]} Na4 {[%emt 0:00:45]} 66. Kb4 {[%emt 0:00:37]} Kc6 {[%emt 0:00:15]} 67. Nf3 {[%emt 0:00:52]} Nb2 {[%emt 0:00:23]} 68. Ne5+ {[%emt 0:00:30]} Kb6 {[%emt 0:00:14]} 69. Ng6 {[%emt 0:00:39]} Nd3+ {[%emt 0:00:26]} 70. Kb3 {[%emt 0:00:14]} Nc1+ {[%emt 0:01:11]} 71. Kc2 {[%emt 0:00:31]} Ne2 {[%emt 0:00:16]} 72. Kd3 {[%emt 0:00:43]} Nc1+ {[%emt 0:00:40]} 73. Kd2 {[%emt 0:00:38]} Nb3+ {[%emt 0:00:21]} 74. Kc2 {[%emt 0:00:17]} Na5 {[%emt 0:00:31]} 75. Ne7 {[%emt 0:00:21]} Nc4 {[%emt 0:00:08]} 76. Nxd5+ {[%emt 0:00:36]} Ka5 {[%emt 0:00:49]} 77. Kb3 {[%emt 0:00:38]} Nd2+ {[%emt 0:00:04]} 78. Ka2 {[%emt 0:00:33]} Ne4 {[%emt 0:00:46]} 79. Kb2 {[%emt 0:00:29]} Nd2 {[%emt 0:00:20]} 80. Ne3 {[%emt 0:00:26]} Nf3 {[%emt 0:00:47]} 81. Kc2 {[%emt 0:00:49]} Ka4 {[%emt 0:00:14]} 82. Kb2 {[%emt 0:00:08]} Nd2 {[%emt 0:00:11]} 83. d5 {[%emt 0:00:43]} Ne4 {[%emt 0:00:37]} 84. Nf5 {[%emt 0:00:34]} 1-0

[Event "XX Gran Hotel Bali-B 2023"]
[Site "Benidorm"]
[Date "2023.12.02"]
[Round "1.2"]
[White "Diez Machin, Vicente"]
[Black "Lloret Mauri, Jaime"]
[Result "0-1"]
[ECO "C02"]
[WhiteElo "1647"]
[BlackElo "1997"]
[Annotator "NA RC"]
[PlyCount "110"]
[EventDate "2023.12.02"]
[EventType "swiss"]
[EventCountry "ESP"]
[SourceTitle "playchess.com"]
[Source "ChessBase"]
[SourceQuality "1"]
[TimeControl "5400+30"]

1. e4 {[%emt 0:00:07]} e6 {[%emt 0:00:55]} 2. d4 {[%emt 0:00:45]} d5 {[%emt 0:00:10]} 3. e5 {[%emt 0:00:09]} c5 {[%emt 0:00:08]} 4. c3 {[%emt 0:00:09]} Nc6 {[%emt 0:00:07]} 5. Nf3 {[%emt 0:00:14]} Qb6 {[%emt 0:00:13]} 6. a3 {[%emt 0:00:22]} a5 {[%emt 0:00:11]} 7. Bd3 {[%emt 0:02:48]} Bd7 {[%emt 0:00:09]} 8. Bc2 {[%emt 0:00:45]} Qa6 {[%emt 0:01:16]} 9. a4 {[%emt 0:02:30]} cxd4 {[%emt 0:00:20]} 10. cxd4 {[%emt 0:00:36]} Nb4 {[%emt 0:00:12]} 11. Nc3 {[%emt 0:01:07]} Ne7 {[%emt 0:00:41]} 12. Nb5 {[%emt 0:01:10]} Nxc2+ {[%emt 0:00:23]} 13. Qxc2 {[%emt 0:00:03]} Bxb5 {[%emt 0:00:27]} 14. axb5 {[%emt 0:00:20]} Qxb5 {[%emt 0:00:08]} 15. Qa4 {[%emt 0:01:36]} Qxa4 {[%emt 0:00:31]} 16. Rxa4 {[%emt 0:00:03]} Nc6 {[%emt 0:00:15]} 17. Bd2 {[%emt 0:05:23]} Bb4 {[%emt 0:02:55]} 18. Bxb4 {[%emt 0:02:37]} Nxb4 {[%emt 0:06:49]} 19. Kd2 {[%emt 0:00:58]} Kd7 {[%emt 0:01:48]} 20. Rc1 {[%emt 0:04:54]} b6 {[%emt 0:00:30]} 21. Rc3 {[%emt 0:13:46]} Rac8 {[%emt 0:02:06]} 22. Ne1 {[%emt 0:00:49]} Rc6 {[%emt 0:16:33]} 23. Rg3 {[%emt 0:15:18]} Rg8 {[%emt 0:02:45]} 24. Raa3 {[%emt 0:02:24]} Rc4 {[%emt 0:00:38]} 25. Rg4 {[%emt 0:06:55]} Nc6 {[%emt 0:13:16]} 26. Nf3 {[%emt 0:01:52]} h6 {[%emt 0:04:18]} 27. h4 {[%emt 0:03:21]} h5 {[%emt 0:01:58]} 28. Rf4 {[%emt 0:03:18]} Ke7 {[%emt 0:01:03]} 29. Rb3 {[%emt 0:03:08]} Nb4 {[%emt 0:00:16]} 30. Ne1 {[%emt 0:02:43]} f6 {[%emt 0:06:48]} 31. exf6+ {[%emt 0:02:26]} gxf6 {[%emt 0:00:11]} 32. Rbf3 {[%emt 0:03:17]} Rg6 {[%emt 0:03:08]} 33. b3 {[%emt 0:00:18]} Rc6 {[%emt 0:00:40]} 34. g3 {[%emt 0:02:11]} b5 {[%emt 0:00:53]} 35. Rc3 {[%emt 0:00:44]} Kd6 {[%emt 0:02:44]} 36. Rcf3 {[%emt 0:01:27]} f5 {[%emt 0:04:49]} 37. Re3 {[%emt 0:01:29]} Rg7 {[%emt 0:01:16]} 38. Rc3 {[%emt 0:04:07]} Rgc7 {[%emt 0:00:51]} 39. Rff3 {[%emt 0:00:22]} Na2 {[%emt 0:02:39]} 40. Rxc6+ {[%emt 0:03:00]} Rxc6 {[%emt 0:00:09]} 41. Ng2 {[%emt 0:02:06]} Nb4 {[%emt 0:06:57]} 42. Nf4 {[%emt 0:01:26]} Rc2+ {[%emt 0:02:14]} 43. Kd1 {[%emt 0:01:27]} Rb2 {[%emt 0:00:46]} 44. Kc1 {[%emt 0:01:46]} Ra2 {[%emt 0:00:16]} 45. Nxh5 {[%emt 0:01:19]} Rxf2 {[%emt 0:00:15]} 46. Re3 {[%emt 0:00:43]} Nc6 {[%emt 0:00:15]} 47. Rd3 {[%emt 0:00:21]} Nb4 {[%emt 0:03:59]} 48. Re3 {[%emt 0:01:10]} Nc2 {[%emt 0:00:31]} 49. Rd3 {[%emt 0:00:23]} Ne1 {[%emt 0:00:57]} 50. Re3 {[%emt 0:00:51]} Ng2 {[%emt 0:00:35]} 51. Re5 {[%emt 0:01:05]} f4 {[%emt 0:00:44]} 52. Ng7 {[%emt 0:00:59]} fxg3 {[%emt 0:00:32]} 53. Rxe6+ {[%emt 0:00:03]} Kd7 {[%emt 0:00:15]} 54. h5 {[%emt 0:00:10]} Nf4 {[%emt 0:14:05]} 55. Re1 {[%emt 0:04:40]} g2 {[%emt 0:00:30]} 0-1

[Event "XX Gran Hotel Bali-B 2023"]
[Site "Benidorm"]
[Date "2023.12.02"]
[Round "1.3"]
[White "Talledo Lagos, Cesar Frank"]
[Black "Far Perez, Pedro Juan"]
[Result "1-0"]
[ECO "A46"]
[WhiteElo "1993"]
[BlackElo "1579"]
[Annotator "NA RC"]
[PlyCount "63"]
[EventDate "2023.12.02"]
[EventType "swiss"]
[EventCountry "ESP"]
[SourceTitle "playchess.com"]
[Source "ChessBase"]
[SourceQuality "1"]
[TimeControl "5400+30"]

1. d4 {[%emt 0:00:05]} Nf6 {[%emt 0:00:12]} 2. Bf4 {[%emt 0:00:18]} e6 {[%emt 0:00:11]} 3. Nf3 {[%emt 0:00:05]} c5 {[%emt 0:00:11]} 4. e3 {[%emt 0:00:35]} Nc6 {[%emt 0:00:21]} 5. c3 {[%emt 0:00:07]} h6 {[%emt 0:00:20]} 6. Nbd2 {[%emt 0:01:40]} Nh5 {[%emt 0:00:58]} 7. Bg3 {[%emt 0:00:10]} Nxg3 {[%emt 0:00:07]} 8. hxg3 {[%emt 0:00:01]} a6 {[%emt 0:00:13]} 9. Bd3 {[%emt 0:00:15]} d5 {[%emt 0:02:11]} 10. O-O {[%emt 0:01:01]} Qb6 {[%emt 0:01:27]} 11. Rb1 {[%emt 0:00:43]} Bd7 {[%emt 0:00:33]} 12. b4 {[%emt 0:02:56]} cxd4 {[%emt 0:01:33]} 13. cxd4 {[%emt 0:00:38]} Qa7 {[%emt 0:11:16]} 14. a3 {[%emt 0:04:04]} Bd6 {[%emt 0:05:04]} 15. Nb3 {[%emt 0:01:04]} Ne7 {[%emt 0:15:43]} 16. Nc5 {[%emt 0:01:15]} Bb5 {[%emt 0:00:44]} 17. Bxb5+ {[%emt 0:02:31]} axb5 {[%emt 0:00:09]} 18. Qd3 {[%emt 0:00:11]} O-O {[%emt 0:05:39]} 19. Qxb5 {[%emt 0:01:48]} b6 {[%emt 0:03:56]} 20. Nd7 {[%emt 0:04:45]} Rfd8 {[%emt 0:01:43]} 21. Nde5 {[%emt 0:00:13]} f6 {[%emt 0:05:34]} 22. Nd3 {[%emt 0:03:33]} Qxa3 {[%emt 0:02:31]} 23. Ra1 {[%emt 0:07:16]} Qc3 {[%emt 0:00:53]} 24. Rxa8 {[%emt 0:01:44]} Rxa8 {[%emt 0:00:11]} 25. Qd7 {[%emt 0:07:35]} Bxb4 {[%emt 0:06:34]} 26. Qxe6+ {[%emt 0:00:25]} Kf8 {[%emt 0:00:17]} 27. Nf4 {[%emt 0:06:03]} Qc7 {[%emt 0:08:37]} 28. Nh4 {[%emt 0:05:01]} Qd6 {[%emt 0:07:18]} 29. Nhg6+ {[%emt 0:01:53]} Ke8 {[%emt 0:01:28]} 30. Qg4 {[%emt 0:08:54]} f5 {[%emt 0:10:01]} 31. Qh5 {[%emt 0:00:48]} Qf6 {[%emt 0:02:18]} 32. Nxe7+ {[%emt 0:00:19]} 1-0

[Event "XX Gran Hotel Bali-B 2023"]
[Site "Benidorm"]
[Date "2023.12.02"]
[Round "1.4"]
[White "Butragueno Nieto, Jorge"]
[Black "Vladut, Matei"]
[Result "0-1"]
[ECO "A40"]
[WhiteElo "1636"]
[BlackElo "1989"]
[Annotator "NA RC"]
[PlyCount "126"]
[EventDate "2023.12.02"]
[EventType "swiss"]
[EventCountry "ESP"]
[SourceTitle "playchess.com"]
[Source "ChessBase"]
[SourceQuality "1"]
[TimeControl "5400+30"]

1. d4 {[%emt 0:00:03]} c5 {[%emt 0:08:47]} 2. d5 {[%emt 0:00:24]} g6 {[%emt 0:00:17]} 3. c4 {[%emt 0:01:09]} Bg7 {[%emt 0:00:06]} 4. Nc3 {[%emt 0:00:39]} Bxc3+ {[%emt 0:00:10]} 5. bxc3 {[%emt 0:00:11]} f5 {[%emt 0:00:04]} 6. Nf3 {[%emt 0:01:15]} Nf6 {[%emt 0:01:13]} 7. Bh6 {[%emt 0:02:09]} Ne4 {[%emt 0:01:30]} 8. Qc2 {[%emt 0:03:50]} Qa5 {[%emt 0:00:36]} 9. Rc1 {[%emt 0:01:09]} d6 {[%emt 0:00:09]} 10. e3 {[%emt 0:01:19]} Nd7 {[%emt 0:00:08]} 11. Bd3 {[%emt 0:02:27]} Ndf6 {[%emt 0:00:07]} 12. h3 {[%emt 0:04:52]} Bd7 {[%emt 0:15:17]} 13. Nd2 {[%emt 0:06:14]} Nxd2 {[%emt 0:01:08]} 14. Qxd2 {[%emt 0:00:31]} O-O-O {[%emt 0:00:07]} 15. Bg7 {[%emt 0:07:43]} Rhg8 {[%emt 0:00:06]} 16. Bxf6 {[%emt 0:00:12]} exf6 {[%emt 0:00:02]} 17. O-O {[%emt 0:00:37]} h5 {[%emt 0:02:38]} 18. Qc2 {[%emt 0:05:33]} h4 {[%emt 0:00:22]} 19. a4 {[%emt 0:16:16]} Rde8 {[%emt 0:02:04]} 20. Rb1 {[%emt 0:02:03]} Kc7 {[%emt 0:01:07]} 21. Rb2 {[%emt 0:04:13]} Re5 {[%emt 0:05:31]} 22. Rfb1 {[%emt 0:00:44]} Rb8 {[%emt 0:00:03]} 23. Ra2 {[%emt 0:04:38]} Re7 {[%emt 0:07:11]} 24. Rab2 {[%emt 0:02:44]} Kc8 {[%emt 0:12:11]} 25. Ra2 {[%emt 0:01:51]} Rg7 {[%emt 0:00:07]} 26. Kh1 {[%emt 0:02:04]} Re7 {[%emt 0:00:47]} 27. Kg1 {[%emt 0:00:36]} Rg7 {[%emt 0:06:15]} 28. Kh1 {[%emt 0:00:14]} Qd8 {[%emt 0:00:15]} 29. a5 {[%emt 0:01:19]} Qe7 {[%emt 0:01:34]} 30. Rab2 {[%emt 0:02:36]} Qe5 {[%emt 0:00:28]} 31. Qd2 {[%emt 0:05:06]} Kc7 {[%emt 0:01:40]} 32. Bc2 {[%emt 0:02:06]} Qe8 {[%emt 0:02:07]} 33. f3 {[%emt 0:08:07]} Re7 {[%emt 0:00:32]} 34. e4 {[%emt 0:01:26]} fxe4 {[%emt 0:00:18]} 35. Bxe4 {[%emt 0:00:35]} g5 {[%emt 0:01:19]} 36. Qf2 {[%emt 0:01:55]} f5 {[%emt 0:00:45]} 37. Bd3 {[%emt 0:00:02]} Qh8 {[%emt 0:00:13]} 38. Qd2 {[%emt 0:02:17]} g4 {[%emt 0:00:40]} 39. f4 {[%emt 0:03:02]} gxh3 {[%emt 0:00:29]} 40. gxh3 {[%emt 0:00:04]} Rg7 {[%emt 0:00:09]} 41. Bf1 {[%emt 0:00:33]} Rg3 {[%emt 0:00:14]} 42. Rb3 {[%emt 0:02:42]} Qg7 {[%emt 0:00:19]} 43. Bg2 {[%emt 0:00:11]} Ba4 {[%emt 0:05:41]} 44. Ra3 {[%emt 0:00:04]} Rg8 {[%emt 0:01:12]} 45. Ra2 {[%emt 0:02:47]} Bd7 {[%emt 0:01:17]} 46. Rab2 {[%emt 0:00:10]} Bc8 {[%emt 0:00:08]} 47. Re1 {[%emt 0:00:27]} Qf6 {[%emt 0:01:22]} 48. Re3 {[%emt 0:00:21]} Rxg2 {[%emt 0:03:02]} 49. Qxg2 {[%emt 0:00:33]} Rxg2 {[%emt 0:00:03]} 50. Rxg2 {[%emt 0:00:07]} Qf7 {[%emt 0:00:20]} 51. Rge2 {[%emt 0:00:14]} Kd8 {[%emt 0:00:25]} 52. Re1 {[%emt 0:00:53]} Bd7 {[%emt 0:00:55]} 53. Rb1 {[%emt 0:01:01]} Kc8 {[%emt 0:00:16]} 54. Rbe1 {[%emt 0:00:26]} Qf6 {[%emt 0:02:14]} 55. Rg1 {[%emt 0:00:30]} Qf7 {[%emt 0:05:16]} 56. Re2 {[%emt 0:00:34]} b5 {[%emt 0:00:40]} 57. cxb5 {[%emt 0:00:30]} Qxd5+ {[%emt 0:00:35]} 58. Kh2 {[%emt 0:00:14]} Bxb5 {[%emt 0:00:18]} 59. c4 {[%emt 0:00:56]} Qxc4 {[%emt 0:00:56]} 60. Reg2 {[%emt 0:01:20]} Qxf4+ {[%emt 0:00:37]} 61. Kh1 {[%emt 0:00:06]} Bc6 {[%emt 0:00:09]} 62. a6 {[%emt 0:00:24]} Qg3 {[%emt 0:00:09]} 63. Rf1 {[%emt 0:00:09]} Qxg2# {[%emt 0:17:20]} 0-1

[Event "XX Gran Hotel Bali-B 2023"]
[Site "Benidorm"]
[Date "2023.12.02"]
[Round "1.5"]
[White "Perez Gonzalez, Daniel"]
[Black "Armao, Olivier"]
[Result "1-0"]
[ECO "B39"]
[WhiteElo "1984"]
[BlackElo "1656"]
[Annotator "NA RC"]
[PlyCount "69"]
[EventDate "2023.12.02"]
[EventType "swiss"]
[EventCountry "ESP"]
[SourceTitle "playchess.com"]
[Source "ChessBase"]
[SourceQuality "1"]
[TimeControl "5400+30"]

1. e4 {[%emt 0:00:13]} c5 {[%emt 0:00:23]} 2. Nf3 {[%emt 0:00:46]} g6 {[%emt 0:00:30]} 3. c4 {[%emt 0:00:37]} Bg7 {[%emt 0:02:13]} 4. d4 {[%emt 0:00:18]} cxd4 {[%emt 0:00:16]} 5. Nxd4 {[%emt 0:00:15]} Nc6 {[%emt 0:00:32]} 6. Be3 {[%emt 0:00:25]} Nf6 {[%emt 0:01:42]} 7. Nc3 {[%emt 0:00:21]} Ng4 {[%emt 0:05:29]} 8. Qxg4 {[%emt 0:00:09]} Nxd4 {[%emt 0:00:25]} 9. Qd1 {[%emt 0:00:08]} Ne6 {[%emt 0:01:04]} 10. Rc1 {[%emt 0:01:29]} d6 {[%emt 0:03:33]} 11. Be2 {[%emt 0:02:16]} O-O {[%emt 0:00:09]} 12. O-O {[%emt 0:04:35]} Bd7 {[%emt 0:04:40]} 13. Qd2 {[%emt 0:05:58]} Bc6 {[%emt 0:08:08]} 14. f3 {[%emt 0:01:26]} Re8 {[%emt 0:04:47]} 15. b4 {[%emt 0:03:23]} b6 {[%emt 0:04:17]} 16. Nd5 {[%emt 0:07:20]} Rc8 {[%emt 0:04:41]} 17. f4 {[%emt 0:09:46]} Nc7 {[%emt 0:05:41]} 18. f5 {[%emt 0:05:35]} Nxd5 {[%emt 0:03:36]} 19. cxd5 {[%emt 0:01:32]} Bd7 {[%emt 0:05:01]} 20. fxg6 {[%emt 0:00:46]} hxg6 {[%emt 0:00:18]} 21. Ba6 {[%emt 0:10:20]} Rxc1 {[%emt 0:03:57]} 22. Rxc1 {[%emt 0:00:07]} Ba4 {[%emt 0:02:18]} 23. b5 {[%emt 0:01:41]} Qd7 {[%emt 0:00:12]} 24. Qb4 {[%emt 0:00:26]} Qg4 {[%emt 0:02:20]} 25. Qxa4 {[%emt 0:01:29]} Be5 {[%emt 0:00:23]} 26. Qc2 {[%emt 0:15:37]} Qh4 {[%emt 0:05:29]} 27. h3 {[%emt 0:00:33]} Qg3 {[%emt 0:00:32]} 28. Qf2 {[%emt 0:00:51]} Qh2+ {[%emt 0:00:09]} 29. Kf1 {[%emt 0:00:01]} f5 {[%emt 0:05:17]} 30. exf5 {[%emt 0:01:45]} gxf5 {[%emt 0:01:16]} 31. Qxf5 {[%emt 0:06:24]} Qg3 {[%emt 0:06:24]} 32. Qg5+ {[%emt 0:01:58]} Qxg5 {[%emt 0:02:42]} 33. Bxg5 {[%emt 0:00:02]} Rf8+ {[%emt 0:00:11]} 34. Ke2 {[%emt 0:00:29]} Rf7 {[%emt 0:00:18]} 35. Rc7 {[%emt 0:00:30]} 1-0

[Event "XX Gran Hotel Bali-B 2023"]
[Site "Benidorm"]
[Date "2023.12.02"]
[Round "1.6"]
[White "Ainsa Jimenez, Lucas"]
[Black "Fabre Massana, Miquel"]
[Result "0-1"]
[ECO "B56"]
[WhiteElo "1582"]
[BlackElo "1982"]
[Annotator "NA RC"]
[PlyCount "160"]
[EventDate "2023.12.02"]
[EventType "swiss"]
[EventCountry "ESP"]
[SourceTitle "playchess.com"]
[Source "ChessBase"]
[SourceQuality "1"]
[TimeControl "5400+30"]

1. e4 {[%emt 0:00:03]} c5 {[%emt 0:00:13]} 2. Nf3 {[%emt 0:00:10]} d6 {[%emt 0:00:28]} 3. d4 {[%emt 0:00:09]} cxd4 {[%emt 0:00:09]} 4. Nxd4 {[%emt 0:00:06]} Nf6 {[%emt 0:00:28]} 5. Nc3 {[%emt 0:00:16]} Nc6 {[%emt 0:00:18]} 6. f3 {[%emt 0:00:37]} e5 {[%emt 0:01:54]} 7. Nb3 {[%emt 0:00:49]} Be6 {[%emt 0:00:19]} 8. Bg5 {[%emt 0:00:56]} Be7 {[%emt 0:01:31]} 9. Bxf6 {[%emt 0:01:59]} Bxf6 {[%emt 0:01:03]} 10. Nd5 {[%emt 0:00:39]} Bg5 {[%emt 0:01:53]} 11. g3 {[%emt 0:06:28]} a5 {[%emt 0:06:28]} 12. h4 {[%emt 0:05:52]} Be7 {[%emt 0:06:07]} 13. Bc4 {[%emt 0:04:52]} Rc8 {[%emt 0:03:31]} 14. Bb5 {[%emt 0:05:46]} O-O {[%emt 0:08:33]} 15. Bxc6 {[%emt 0:01:41]} bxc6 {[%emt 0:00:29]} 16. Nxe7+ {[%emt 0:00:35]} Qxe7 {[%emt 0:00:02]} 17. Nxa5 {[%emt 0:01:25]} d5 {[%emt 0:01:13]} 18. c3 {[%emt 0:07:40]} dxe4 {[%emt 0:05:00]} 19. fxe4 {[%emt 0:01:09]} Qc5 {[%emt 0:02:39]} 20. Nb3 {[%emt 0:04:35]} Qe3+ {[%emt 0:01:24]} 21. Qe2 {[%emt 0:00:44]} Qxg3+ {[%emt 0:02:03]} 22. Qf2 {[%emt 0:03:15]} Qxf2+ {[%emt 0:01:40]} 23. Kxf2 {[%emt 0:00:08]} f5 {[%emt 0:00:43]} 24. Nc5 {[%emt 0:09:32]} fxe4+ {[%emt 0:01:15]} 25. Ke2 {[%emt 0:03:15]} Bc4+ {[%emt 0:03:23]} 26. Ke1 {[%emt 0:02:18]} Rf3 {[%emt 0:07:04]} 27. b3 {[%emt 0:07:07]} Re3+ {[%emt 0:01:41]} 28. Kf2 {[%emt 0:02:05]} Re2+ {[%emt 0:00:47]} 29. Kg3 {[%emt 0:00:14]} Bd3 {[%emt 0:01:03]} 30. Rhe1 {[%emt 0:03:34]} Rc2 {[%emt 0:02:08]} 31. Nxe4 {[%emt 0:08:15]} Bxe4 {[%emt 0:00:35]} 32. Rxe4 {[%emt 0:00:14]} Rxc3+ {[%emt 0:00:17]} 33. Kg4 {[%emt 0:00:10]} Re8 {[%emt 0:02:00]} 34. Rae1 {[%emt 0:01:26]} Rc5 {[%emt 0:02:51]} 35. b4 {[%emt 0:01:08]} Rd5 {[%emt 0:00:06]} 36. Rc1 {[%emt 0:03:00]} Re6 {[%emt 0:02:11]} 37. a4 {[%emt 0:01:29]} Kf7 {[%emt 0:01:20]} 38. a5 {[%emt 0:01:53]} Rg6+ {[%emt 0:06:20]} 39. Kf3 {[%emt 0:01:51]} Ke7 {[%emt 0:01:37]} 40. a6 {[%emt 0:00:49]} Kd6 {[%emt 0:01:55]} 41. a7 {[%emt 0:01:42]} Rd3+ {[%emt 0:00:36]} 42. Re3 {[%emt 0:01:42]} Rxe3+ {[%emt 0:01:31]} 43. Kxe3 {[%emt 0:01:55]} Rg3+ {[%emt 0:00:01]} 44. Ke4 {[%emt 0:00:22]} Ra3 {[%emt 0:00:28]} 45. Rd1+ {[%emt 0:01:05]} Kc7 {[%emt 0:00:26]} 46. Rg1 {[%emt 0:01:47]} g6 {[%emt 0:04:01]} 47. h5 {[%emt 0:02:29]} Rxa7 {[%emt 0:02:00]} 48. hxg6 {[%emt 0:00:32]} hxg6 {[%emt 0:00:16]} 49. Kxe5 {[%emt 0:00:11]} Ra4 {[%emt 0:00:38]} 50. Rg4 {[%emt 0:00:54]} Kb6 {[%emt 0:02:16]} 51. Rc4 {[%emt 0:01:10]} Ra8 {[%emt 0:02:41]} 52. Kf6 {[%emt 0:00:30]} Rc8 {[%emt 0:03:01]} 53. Kxg6 {[%emt 0:00:39]} Kb5 {[%emt 0:00:10]} 54. Rd4 {[%emt 0:00:49]} Rf8 {[%emt 0:00:45]} 55. Kg5 {[%emt 0:01:17]} Rf1 {[%emt 0:00:22]} 56. Re4 {[%emt 0:00:35]} Rb1 {[%emt 0:00:32]} 57. Kf5 {[%emt 0:00:36]} Rxb4 {[%emt 0:00:35]} 58. Re3 {[%emt 0:00:33]} Rd4 {[%emt 0:00:42]} 59. Ke5 {[%emt 0:01:04]} c5 {[%emt 0:01:09]} 60. Rb3+ {[%emt 0:01:05]} Kc4 {[%emt 0:00:34]} 61. Rb1 {[%emt 0:00:25]} Rd3 {[%emt 0:05:58]} 62. Ke4 {[%emt 0:00:58]} Rb3 {[%emt 0:01:30]} 63. Rc1+ {[%emt 0:00:19]} Kb4 {[%emt 0:00:31]} 64. Kd5 {[%emt 0:00:11]} Rd3+ {[%emt 0:00:23]} 65. Ke4 {[%emt 0:00:07]} c4 {[%emt 0:00:19]} 66. Ra1 {[%emt 0:00:38]} Rd8 {[%emt 0:00:52]} 67. Rb1+ {[%emt 0:00:15]} Ka3 {[%emt 0:00:21]} 68. Rb5 {[%emt 0:00:39]} c3 {[%emt 0:00:23]} 69. Rc5 {[%emt 0:00:30]} Kb2 {[%emt 0:00:12]} 70. Rb5+ {[%emt 0:00:23]} Kc1 {[%emt 0:00:04]} 71. Ke3 {[%emt 0:00:38]} c2 {[%emt 0:00:37]} 72. Ke2 {[%emt 0:00:10]} Re8+ {[%emt 0:00:13]} 73. Kf3 {[%emt 0:00:31]} Kd2 {[%emt 0:01:26]} 74. Rd5+ {[%emt 0:00:05]} Kc3 {[%emt 0:00:25]} 75. Rc5+ {[%emt 0:00:20]} Kd3 {[%emt 0:00:14]} 76. Rc7 {[%emt 0:00:13]} Re1 {[%emt 0:00:20]} 77. Rd7+ {[%emt 0:00:30]} Kc3 {[%emt 0:00:08]} 78. Rc7+ {[%emt 0:00:29]} Kb3 {[%emt 0:00:02]} 79. Rb7+ {[%emt 0:00:42]} Ka4 {[%emt 0:00:03]} 80. Ra7+ {[%emt 0:00:15]} Kb5 {[%emt 0:00:11]} 0-1